bitfinex-derivatives/quotes_SOLF0:USTF0_20260114
["timestamp","ask_amount","ask_price","bid_price","bid_amount"]
[1768388976334,81.78,144.57,144.53,0.05042254]
[1768388980528,81.78,144.57,144.52,2.97016101]
[1768388980724,0.05207862,144.56,144.52,2.97016101]
[1768388982840,0.05207862,144.56,144.52,9.20076101]
[1768388987742,0.00165608,144.56,144.53,9.24823188]
[1768388988153,0.00165608,144.56,144.54,2.97016101]
[1768388993555,0.00165608,144.56,144.53,0.04797087]
[1768389000465,0.00165608,144.56,144.5,3.21193966]
[1768389000765,3.09375521,144.56,144.48,3.21193966]
[1768389000960,3.09209913,144.55,144.48,3.21193966]
[1768389001360,3.09209913,144.54,144.48,3.21193966]
[1768389001960,0.05065569,144.52,144.48,3.21193966]
[1768389002670,3.14275482,144.52,144.46,3.51192372]
[1768389002861,3.14275482,144.52,144.46,3.21192372]
[1768389003263,5.82604315,144.52,144.46,3.21192372]
[1768389004655,3.09209913,144.51,144.44,3.21190814]
[1768389005570,0.05058643,144.49,144.44,3.21190814]
[1768389005953,0.05058643,144.49,144.46,0.0437906]
[1768389011372,3.23846199,144.49,144.42,9.34106908]
[1768389011760,3.18787556,144.49,144.43,6.2344]
[1768389011958,3.18787556,144.51,144.44,3.10646908]
[1768389012873,0.05035236,144.49,144.44,3.10646908]
[1768389013470,0.05035236,144.49,144.45,6.2335]
[1768389014878,0.05035236,144.49,144.44,3.10646908]
[1768389015172,3.23822792,144.49,144.4,3.10646908]
[1768389015373,3.23822792,144.49,144.35,3.10646908]
[1768389015374,3.18787556,144.44,144.35,3.10646908]
[1768389015672,3.18787556,144.43,144.36,3.10646908]
[1768389015867,2.68328833,144.44,144.36,3.10646908]
[1768389016063,2.68328833,144.44,144.36,1.90646908]
[1768389016064,3.18787556,144.44,144.36,1.90646908]
[1768389016270,0.04710117,144.41,144.36,1.90646908]
[1768389016469,3.23497673,144.41,144.33,0.3]
[1768389016669,3.18787556,144.38,144.28,1000.0]
[1768389016872,0.04710117,144.41,144.28,1000.0]
[1768389016873,2.68328833,144.36,144.28,1000.0]
[1768389017073,15.0,144.4,144.28,1000.0]
[1768389017074,3.18787556,144.37,144.28,1000.0]
[1768389017472,5.87116389,144.37,144.28,1000.0]
[1768389017668,3.18787556,144.36,144.28,1000.0]
[1768389017870,0.0507833,144.34,144.28,1000.0]
[1768389018278,7.30194719,144.34,144.28,972.65397087]
[1768389018470,3.23865886,144.34,144.28,972.65397087]
[1768389019075,5.92194719,144.34,144.28,972.65397087]
[1768389019276,3.18787556,144.33,144.28,961.39350391]
[1768389019579,5.87116389,144.33,144.28,961.39350391]
[1768389019879,3.18787556,144.33,144.28,961.39350391]
[1768389020267,4.06328833,144.33,144.28,934.40379415]
[1768389020477,4.06328833,144.33,144.28,923.77699415]
[1768389020675,4.06328833,144.33,144.28,890.50409415]
[1768389020874,4.06328833,144.33,144.28,879.95529415]
[1768389020875,1.38,144.33,144.28,879.95529415]
[1768389021076,0.0507833,144.34,144.29,0.05229515]
[1768389021372,1.4307833,144.34,144.29,0.05229515]
[1768389021575,0.0507833,144.34,144.29,0.05229515]
[1768389021777,81.82,144.33,144.29,0.05229515]
[1768389022283,81.82,144.33,144.28,879.95529415]
[1768389022872,81.82,144.33,144.28,883.03318079]
[1768389024178,0.0507833,144.34,144.28,883.03318079]
[1768389024179,0.0507833,144.34,144.29,3.07788664]
[1768389026074,0.0507833,144.34,144.28,879.95529415]
[1768389028183,0.0507833,144.34,144.28,883.03318079]
[1768389030186,0.0507833,144.34,144.28,879.95529415]
[1768389030682,4.11407163,144.34,144.28,876.66494076]
[1768389030883,4.11407163,144.34,144.28,866.79388059]
[1768389031285,1.72318391,144.32,144.28,866.79388059]
[1768389032381,0.0507833,144.34,144.28,866.79388059]
[1768389032580,1.72318391,144.33,144.28,866.79388059]
[1768389032882,0.0507833,144.34,144.28,869.87176723]
[1768389033080,0.0507833,144.34,144.29,3.07788664]
[1768389034578,1.72318391,144.39,144.29,3.07788664]
[1768389034785,81.88,144.38,144.29,3.07788664]
[1768389035586,81.88,144.38,144.3,3.06138217]
[1768389035783,81.88,144.38,144.32,3.06138217]
[1768389036181,1.72318391,144.41,144.32,3.06138217]
[1768389036680,81.88,144.42,144.3,81.88]
[1768389036681,81.88,144.42,144.36,3.06138217]
[1768389038188,1.72318391,144.45,144.36,3.06138217]
[1768389038387,81.88,144.45,144.37,1.72318391]
[1768389038584,81.88,144.45,144.37,3.06138217]
[1768389038787,1.72318391,144.44,144.37,3.06138217]
[1768389038986,83.60318391,144.45,144.37,3.06138217]
[1768389039384,81.88,144.45,144.37,3.06138217]
[1768389040288,0.05281691,144.42,144.4,0.046454]
[1768389040993,81.88,144.45,144.4,0.046454]
[1768389042482,81.88,144.45,144.4,3.10783617]
[1768389042683,1.72318391,144.41,144.36,3.06138217]
[1768389042878,0.04434676,144.44,144.33,1.72318391]
[1768389043086,0.04434676,144.44,144.34,3.06138217]
[1768389043285,81.88,144.45,144.35,3.06138217]
[1768389043490,1.72318391,144.44,144.35,3.06138217]
[1768389044487,1.72318391,144.44,144.36,3.06138217]
[1768389044688,81.88,144.45,144.36,3.06138217]
[1768389044988,1.72318391,144.44,144.36,3.06138217]
[1768389045990,81.88,144.45,144.36,3.06138217]
[1768389046188,1.72318391,144.44,144.36,3.06138217]
[1768389046691,1.72318391,144.42,144.36,3.06138217]
[1768389046992,1.72318391,144.41,144.36,3.06138217]
[1768389047185,1.72318391,144.41,144.33,3.06138217]
[1768389047384,1.72318391,144.39,144.33,3.06138217]
[1768389047787,102.66,144.45,144.33,3.06138217]
[1768389047988,1.72318391,144.4,144.33,3.06138217]
[1768389048183,102.66,144.45,144.33,3.06138217]
[1768389048388,1.72318391,144.42,144.33,3.06138217]
[1768389049190,102.66,144.45,144.35,3.06138217]
[1768389049389,1.72318391,144.44,144.35,3.06138217]
[1768389049892,102.66,144.45,144.35,3.06138217]
[1768389050085,1.72318391,144.44,144.35,3.06138217]
[1768389050799,1.72318391,144.43,144.35,3.06138217]
[1768389051000,81.88,144.45,144.35,3.06138217]
[1768389051299,1.72318391,144.43,144.35,3.06138217]
[1768389052603,81.88,144.45,144.36,3.06138217]
[1768389052801,83.60318391,144.45,144.36,3.06138217]
[1768389053002,83.60318391,144.45,144.38,3.06138217]
[1768389053400,1.20515307,144.51,144.38,3.06138217]
[1768389053603,20.78,144.62,144.43,3.06138217]
[1768389053808,20.78,144.6,144.43,3.06138217]
[1768389054004,87.37831235,144.61,144.43,3.06138217]
[1768389054005,1.72318391,144.5,144.43,3.06138217]
[1768389054394,1.72318391,144.48,144.38,1.72318391]
[1768389054597,1.72318391,144.47,144.45,0.04889903]
[1768389054800,1.72318391,144.47,144.41,3.06138217]
[1768389055002,0.04932033,144.44,144.41,3.06138217]
[1768389055198,1.72318391,144.47,144.41,3.06138217]
[1768389055893,1.72318391,144.48,144.41,3.06138217]
[1768389056097,102.62,144.54,144.41,3.06138217]
[1768389056299,1.72318391,144.48,144.41,3.06138217]
[1768389057702,81.84,144.54,144.41,3.06138217]
[1768389057902,1.72318391,144.47,144.41,3.06138217]
[1768389058905,1.72318391,144.49,144.41,3.06138217]
[1768389059702,81.84,144.54,144.41,3.06138217]
[1768389059908,1.72318391,144.51,144.43,3.06138217]
[1768389060600,81.84,144.54,144.43,3.06138217]
[1768389060800,1.72318391,144.47,144.4,3.06138217]
[1768389061201,0.05125981,144.48,144.41,3.06138217]
[1768389061402,1.72318391,144.5,144.41,3.06138217]
[1768389061905,81.84,144.54,144.41,3.06138217]
[1768389062111,1.72318391,144.5,144.41,3.06138217]
[1768389062799,81.84,144.54,144.41,3.06138217]
[1768389063000,1.72318391,144.51,144.41,3.06138217]
[1768389064395,1.72318391,144.5,144.41,3.06138217]
[1768389065510,81.84,144.54,144.41,3.06138217]
[1768389065709,1.72318391,144.5,144.41,3.06138217]
[1768389065904,1.72318391,144.48,144.38,3.49787483]
[1768389066207,102.62,144.54,144.38,3.19787483]
[1768389066208,1.72318391,144.44,144.38,3.19787483]
[1768389066411,1.72318391,144.42,144.35,3.19787483]
[1768389066907,1.67906443,144.42,144.37,0.04716212]
[1768389067098,0.04805548,144.4,144.37,0.04716212]
[1768389067305,1.72318391,144.44,144.37,3.24503695]
[1768389067603,1.72318391,144.44,144.37,3.19787483]
[1768389068709,1.72318391,144.44,144.39,0.05210001]
[1768389069215,102.62,144.54,144.39,0.05210001]
[1768389069406,1.72318391,144.43,144.39,0.05210001]
[1768389069600,1.72318391,144.43,144.37,3.19787483]
[1768389070107,1.72318391,144.45,144.4,3.19787483]
[1768389070905,1.72318391,144.43,144.41,0.04859595]
[1768389071112,1.72318391,144.43,144.37,3.19787483]
[1768389071315,102.62,144.54,144.37,3.19787483]
[1768389071515,1.72318391,144.43,144.37,3.19787483]
[1768389072404,1.72318391,144.43,144.31,0.3]
[1768389072610,1.72318391,144.41,144.33,3.19787483]
[1768389074415,1.72318391,144.43,144.33,3.19787483]
[1768389075919,1.72318391,144.39,144.3,3.19787483]
[1768389076218,1.72318391,144.37,144.3,3.19787483]
[1768389076608,0.04593122,144.36,144.3,3.19787483]
[1768389076917,0.04593122,144.36,144.32,0.04574343]
[1768389078310,0.04593122,144.36,144.32,3.24361826]
[1768389078705,0.04593122,144.36,144.32,0.04574343]
[1768389086015,0.04593122,144.36,144.32,3.04372004]
[1768389086514,0.04593122,144.36,144.32,4.76690395]
[1768389086911,0.04593122,144.36,144.32,3.04372004]
[1768389087110,0.04593122,144.36,144.32,4.76690395]
[1768389087327,0.04593122,144.36,144.32,0.04574343]
[1768389088818,0.04593122,144.36,144.32,3.04372004]
[1768389089613,1.72318391,144.43,144.33,1.72318391]
[1768389089815,1.72318391,144.43,144.33,4.72116052]
[1768389090818,1.72318391,144.42,144.33,4.72116052]
[1768389091120,1.72318391,144.42,144.37,0.04553692]
[1768389091319,2.68888977,144.44,144.37,0.04553692]
[1768389091720,1.38,144.43,144.33,2.99797661]
[1768389091920,80.7,144.46,144.3,2.99797661]
[1768389091921,2.68888977,144.42,144.3,2.99797661]
[1768389093517,2.68888977,144.4,144.3,2.99797661]
[1768389095819,2.68888977,144.4,144.28,866.79388059]
[1768389095820,2.68888977,144.38,144.28,866.79388059]
[1768389097923,2.68888977,144.36,144.28,866.79388059]
[1768389098124,2.68888977,144.41,144.28,866.79388059]
[1768389098416,2.68888977,144.37,144.28,866.79388059]
[1768389099522,2.68888977,144.39,144.28,869.79531384]
[1768389100416,2.68888977,144.4,144.29,3.00143325]
[1768389100611,2.68888977,144.41,144.29,3.00143325]
[1768389101416,0.00130529,144.36,144.34,0.0483634]
[1768389101916,2.68888977,144.41,144.34,0.0483634]
[1768389104924,20.78,144.41,144.34,0.0483634]
[1768389105127,2.68888977,144.43,144.34,0.0483634]
[1768389105518,2.68888977,144.43,144.33,3.00143325]
[1768389106018,2.68888977,144.43,144.37,0.05106423]
[1768389108324,2.68888977,144.43,144.33,3.00143325]
[1768389108520,2.73972857,144.41,144.3,3.00143325]
[1768389108925,2.68888977,144.41,144.3,3.00143325]
[1768389110120,2.68888977,144.42,144.3,3.00143325]
[1768389110525,0.04943819,144.37,144.3,3.00143325]
[1768389114319,2.73832796,144.37,144.28,866.79388059]
[1768389114725,2.68888977,144.37,144.28,866.79388059]
[1768389116631,2.68888977,144.35,144.28,866.79388059]
[1768389116936,0.04852454,144.34,144.28,866.79388059]
[1768389119033,0.04852454,144.34,144.3,0.04509304]
[1768389120930,20.78,144.45,144.3,0.04509304]
[1768389120931,2.68888977,144.42,144.3,3.04652629]
[1768389121227,20.78,144.41,144.3,3.04652629]
[1768389121423,20.78,144.41,144.3,3.00143325]
[1768389121628,20.78,144.41,144.31,3.00143325]
[1768389121838,20.78,144.41,144.33,3.00143325]
[1768389122137,102.42,144.42,144.33,3.00143325]
[1768389123042,81.64,144.42,144.33,3.00143325]
[1768389123538,81.64,144.42,144.33,5.69032302]
[1768389123737,81.64,144.42,144.34,3.00143325]
[1768389126043,102.42,144.42,144.34,3.00143325]
[1768389126244,102.42,144.42,144.32,3.11948787]
[1768389126745,0.04704846,144.38,144.32,3.11948787]
[1768389127844,0.04704846,144.38,144.34,0.04944221]
[1768389130446,81.64,144.42,144.34,3.16893008]
[1768389132148,23.46888977,144.46,144.34,3.16893008]
[1768389132549,23.46888977,144.46,144.34,3.11948787]
[1768389132952,23.46888977,144.46,144.39,0.0466851]
[1768389133245,2.68888977,144.44,144.34,3.11948787]
[1768389133451,2.68888977,144.44,144.3,3.11948787]
[1768389133645,20.78,144.46,144.3,3.11948787]
[1768389133845,2.68888977,144.43,144.3,3.11948787]
[1768389134446,0.0506746,144.38,144.3,3.11948787]
[1768389134846,0.0506746,144.38,144.35,0.04806468]
[1768389138347,2.68888977,144.45,144.35,0.04806468]
[1768389138751,2.68888977,144.45,144.34,3.11948787]
[1768389139746,2.68888977,144.45,144.38,0.04866193]
[1768389140450,2.68888977,144.43,144.38,0.04866193]
[1768389140657,2.68888977,144.43,144.29,5.90223276]
[1768389140851,2.68888977,144.43,144.3,3.21334299]
[1768389141052,2.68888977,144.43,144.32,3.21334299]
[1768389145549,0.04501985,144.39,144.33,3.21334299]
[1768389145753,23.46888977,144.46,144.33,3.21334299]
[1768389145950,23.46888977,144.46,144.36,3.26099334]
[1768389146348,23.46888977,144.46,144.36,3.21334299]
[1768389147161,23.46888977,144.46,144.4,0.0476342]
[1768389147759,23.46888977,144.46,144.36,3.21334299]
[1768389148558,23.46888977,144.46,144.32,3.21334299]
[1768389148758,2.68888977,144.44,144.32,3.21334299]
[1768389150254,23.46888977,144.46,144.34,3.21334299]
[1768389151061,0.04414473,144.41,144.34,3.21334299]
[1768389153465,0.04414473,144.41,144.35,4.93371825]
[1768389153664,0.04414473,144.41,144.36,3.21334299]
[1768389153861,1.72037526,144.44,144.36,3.21334299]
[1768389154664,0.0470336,144.41,144.36,3.21334299]
[1768389159267,1.72037526,144.44,144.36,3.21334299]
[1768389159466,1.72037526,144.44,144.37,3.1403941]
[1768389160664,1.72037526,144.43,144.37,3.1403941]
[1768389161161,1.72037526,144.43,144.37,3.09318233]
[1768389161469,1.72037526,144.43,144.39,0.04437469]
[1768389166172,1.72037526,144.43,144.37,3.09318233]
[1768389166471,0.05097449,144.42,144.37,3.09318233]
[1768389166669,1.72037526,144.41,144.34,3.09318233]
[1768389167777,0.04574696,144.39,144.34,3.09318233]
[1768389168672,0.04574696,144.39,144.35,3.14054215]
[1768389168862,0.04574696,144.39,144.35,0.04735982]
[1768389170172,0.04574696,144.39,144.35,3.14054215]
[1768389171167,1.72037526,144.42,144.35,3.14054215]
[1768389171572,1.72037526,144.42,144.35,3.09318233]
[1768389172377,1.72037526,144.42,144.37,0.04480153]
[1768389173478,1.72037526,144.42,144.37,3.13798386]
[1768389174981,1.72037526,144.4,144.37,0.04480153]
[1768389175384,1.72037526,144.4,144.34,3.09318233]
[1768389175882,1.72037526,144.4,144.37,0.0480618]
[1768389176982,1.72037526,144.43,144.37,3.14124413]
[1768389177375,1.72037526,144.43,144.37,3.09318233]
[1768389177775,1.72037526,144.43,144.39,0.05129579]
[1768389179386,20.78,144.46,144.39,0.05129579]
[1768389179686,1.72037526,144.44,144.39,0.05129579]
[1768389180285,83.36037526,144.47,144.39,3.14447812]
[1768389180976,1.72037526,144.43,144.39,0.05129579]
[1768389181776,0.05,144.4,144.39,0.05129579]
[1768389182695,1.72037526,144.43,144.39,0.05129579]
[1768389183786,20.81,144.46,144.39,0.05129579]
[1768389183985,1.72037526,144.42,144.39,0.05129579]
[1768389184577,81.64,144.47,144.39,3.14447812]
[1768389184784,1.72037526,144.46,144.39,3.14447812]
[1768389185387,81.64,144.47,144.39,3.14447812]
[1768389185590,83.36037526,144.47,144.39,3.14447812]
[1768389186692,1.72037526,144.45,144.39,3.14447812]
[1768389193186,1.72037526,144.41,144.39,0.05129579]
[1768389193399,1.72037526,144.41,144.36,2.97702175]
[1768389194695,102.45,144.47,144.36,2.97702175]
[1768389194899,1.72037526,144.41,144.36,2.97702175]
[1768389195102,1.72037526,144.42,144.36,2.97702175]
[1768389195799,102.45,144.47,144.36,2.97702175]
[1768389195995,1.72037526,144.42,144.36,2.97702175]
[1768389199007,102.45,144.47,144.36,2.97702175]
[1768389199205,1.72037526,144.43,144.36,2.97702175]
[1768389203608,1.72037526,144.41,144.36,2.97702175]
[1768389203810,1.627615,144.39,144.36,2.97702175]
[1768389204399,1.72037526,144.41,144.36,2.97702175]
[1768389206510,102.45,144.47,144.36,2.97702175]
[1768389206707,1.72037526,144.41,144.36,2.97702175]
[1768389207406,102.45,144.47,144.36,2.97702175]
[1768389207612,1.72037526,144.4,144.36,2.97702175]
[1768389209110,102.45,144.47,144.36,2.97702175]
[1768389209506,1.72037526,144.41,144.36,2.97702175]
[1768389210412,102.45,144.47,144.36,2.97702175]
[1768389210712,1.72037526,144.41,144.36,2.97702175]
[1768389211615,102.45,144.47,144.36,2.97702175]
[1768389211815,1.72037526,144.41,144.36,2.97702175]
[1768389212116,102.45,144.47,144.36,2.97702175]
[1768389212414,1.72037526,144.41,144.36,2.97702175]
[1768389213413,2.68876402,144.42,144.36,2.97702175]
[1768389215915,2.68876402,144.43,144.36,2.97702175]
[1768389216216,2.68876402,144.45,144.36,2.97702175]
[1768389217921,2.68876402,144.46,144.36,2.97702175]
[1768389218619,20.81,144.51,144.36,2.97702175]
[1768389218820,2.68876402,144.47,144.36,2.97702175]
[1768389220521,0.04395907,144.43,144.36,2.97702175]
[1768389223818,2.73272309,144.43,144.38,0.04813054]
[1768389227116,2.73272309,144.43,144.36,2.97702175]
[1768389230625,0.04395907,144.43,144.36,2.97702175]
[1768389230825,2.68876402,144.42,144.36,2.97702175]
[1768389232728,0.04395907,144.43,144.36,2.97702175]
[1768389247035,2.68876402,144.48,144.37,3.27245356]
[1768389247237,2.68876402,144.5,144.37,3.27245356]
[1768389247427,20.81,144.51,144.37,3.27245356]
[1768389247624,23.49876402,144.51,144.37,3.27245356]
[1768389247824,20.81,144.51,144.37,3.27245356]
[1768389248029,2.68876402,144.5,144.37,3.27245356]
[1768389249238,0.04424517,144.45,144.37,3.27245356]
[1768389250228,0.04424517,144.45,144.37,5.96121758]
[1768389250436,0.04424517,144.45,144.38,3.27245356]
[1768389255838,0.04424517,144.45,144.34,3.27245356]
[1768389256336,2.68876402,144.46,144.34,3.27245356]
[1768389257143,0.04421197,144.41,144.34,3.27245356]
[1768389258142,0.04421197,144.41,144.37,3.27245356]
[1768389261244,2.68876402,144.46,144.37,3.27245356]
[1768389262246,1.20534091,144.5,144.37,3.27245356]
[1768389262247,2.68876402,144.48,144.37,3.27245356]
[1768389262443,2.68876402,144.48,144.4,0.0441689]
[1768389263848,2.68876402,144.48,144.4,3.19826553]
[1768389266047,0.04377501,144.45,144.4,3.19826553]
[1768389268751,0.04377501,144.45,144.4,0.0441689]
[1768389273551,2.68876402,144.44,144.37,3.15409663]
[1768389275356,1.72045191,144.43,144.37,3.15409663]
[1768389275754,2.68876402,144.48,144.37,3.15409663]
[1768389276054,1.72045191,144.43,144.37,3.15409663]
[1768389277161,0.04374307,144.41,144.37,3.15409663]
[1768389281253,0.04374307,144.41,144.35,3.21315234]
[1768389281860,1.72045191,144.42,144.35,3.21315234]
[1768389282662,0.04382642,144.4,144.35,3.21315234]
[1768389298486,1.72045191,144.44,144.35,3.21315234]
[1768389298675,1.72045191,144.44,144.36,0.05150387]
[1768389298876,1.72045191,144.44,144.37,3.21315234]
[1768389299276,1.72045191,144.45,144.37,3.21315234]
[1768389299783,1.72045191,144.45,144.4,0.04655788]
[1768389299972,1.20534091,144.5,144.4,0.04655788]
[1768389300176,1.72045191,144.44,144.4,0.04655788]
[1768389300484,1.72045191,144.44,144.37,3.21315234]
[1768389300777,1.72045191,144.44,144.28,1032.12377167]
[1768389300778,1.72045191,144.42,144.29,3.21315234]
[1768389300983,1.72045191,144.42,144.28,1032.12377167]
[1768389300984,27.742,144.49,144.32,3.21315234]
[1768389301185,1.72045191,144.4,144.32,3.21315234]
[1768389301585,1.72045191,144.4,144.29,3.21315234]
[1768389301786,1.72045191,144.38,144.29,3.21315234]
[1768389302381,1.72045191,144.38,144.3,3.21315234]
[1768389302781,1.72045191,144.38,144.32,0.04875612]
[1768389306888,20.81,144.48,144.32,3.21105582]
[1768389307087,1.72045191,144.4,144.32,3.21105582]
[1768389307391,1.72045191,144.41,144.33,3.1622997]
[1768389307790,1.72045191,144.41,144.35,0.04683317]
[1768389311391,1.72045191,144.39,144.35,0.04683317]
[1768389311690,1.72045191,144.39,144.31,3.1622997]
[1768389311691,1.72045191,144.37,144.29,3.1622997]
[1768389311895,0.05177983,144.39,144.29,4.88275161]
[1768389312088,1.77223174,144.39,144.3,3.1622997]
[1768389312286,1.72045191,144.39,144.3,3.1622997]
[1768389312491,102.21,144.41,144.3,3.1622997]
[1768389312691,1.72045191,144.4,144.3,3.1622997]
[1768389312991,0.04403005,144.36,144.31,3.1622997]
[1768389313492,1.72045191,144.32,144.28,816.06244389]
[1768389313689,1.72045191,144.31,144.28,781.6805777]
[1768389315294,1.76830163,144.31,144.28,781.6805777]
[1768389315996,1.76830163,144.31,144.28,740.08645517]
[1768389316290,0.04784972,144.31,144.28,740.08645517]
[1768389318397,81.42,144.35,144.28,740.08645517]
[1768389318586,81.42,144.35,144.29,3.1622997]
[1768389319197,1.72045191,144.37,144.29,3.1622997]
[1768389319496,81.42,144.37,144.29,3.28046122]
[1768389320096,22.53045191,144.38,144.32,0.04565574]
[1768389320299,81.42,144.37,144.32,0.04565574]
[1768389320490,8.13734091,144.5,144.32,0.04565574]
[1768389320696,1.72045191,144.41,144.32,3.32611696]
[1768389320899,81.44,144.4,144.32,3.28046122]
[1768389321294,81.44,144.4,144.35,0.04801689]
[1768389322495,1.72045191,144.37,144.28,733.51050033]
[1768389322695,1.72045191,144.3,144.28,614.68177143]
[1768389322903,1.72045191,144.3,144.28,486.47444197]
[1768389323092,1.72045191,144.3,144.28,444.84858361]
[1768389323495,1.72045191,144.3,144.28,287.80974862]
[1768389323697,57.0,144.29,144.28,284.5217712]
[1768389324001,77.81,144.29,144.28,156.31444174]
[1768389324703,77.81,144.29,144.28,40.90146511]
[1768389325205,1.76412839,144.3,144.28,40.90146511]
[1768389325504,1.38,144.29,144.28,40.90146511]
[1768389327303,1.38,144.28,144.19,0.3]
[1768389327503,1.38,144.28,144.2,11.65417053]
[1768389327504,20.81,144.26,144.2,11.65417053]
[1768389327704,20.81,144.26,144.18,1.72045191]
[1768389327909,20.81,144.26,144.2,1.72045191]
[1768389328102,0.05004321,144.24,144.13,3.28046122]
[1768389328302,0.05004321,144.24,144.2,1.72045191]
[1768389328508,20.81,144.22,144.13,3.28046122]
[1768389328809,20.81,144.22,144.2,1.72045191]
[1768389329205,0.04973156,144.23,144.2,1.72045191]
[1768389329403,0.04973156,144.23,144.13,3.28046122]
[1768389329914,81.44,144.27,144.13,3.28046122]
[1768389329915,20.81,144.26,144.13,3.28046122]
[1768389330113,20.81,144.26,144.19,1.72045191]
[1768389330310,20.81,144.26,144.21,1.72045191]
[1768389330516,1.20736911,144.24,144.17,1.72045191]
[1768389330812,1.20736911,144.24,144.16,1.72045191]
[1768389331507,1.20736911,144.24,144.12,3.28046122]
[1768389331904,1.20736911,144.24,144.15,1.72045191]
[1768389332108,1.20736911,144.24,144.12,3.28046122]
[1768389332311,1.20736911,144.24,144.16,1.72045191]
[1768389332905,1.20736911,144.24,144.14,3.28046122]
[1768389333205,1.72045191,144.15,144.04,3.28046122]
[1768389333405,1.72045191,144.15,144.05,3.28046122]
[1768389333406,20.81,144.14,144.05,3.28046122]
[1768389333607,20.81,144.14,144.06,1.72045191]
[1768389334202,1.38,144.13,144.03,3.28046122]
[1768389334512,22.53045191,144.14,144.04,1.72045191]
[1768389334812,22.53045191,144.14,144.03,3.28046122]
[1768389335014,20.81,144.14,144.05,3.28046122]
[1768389335314,20.81,144.14,144.05,5.97989662]
[1768389336206,20.81,144.14,144.06,3.20647561]
[1768389337413,20.81,144.14,144.07,5.90591101]
[1768389337812,20.81,144.14,144.07,3.20647561]
[1768389338012,20.81,144.18,144.08,3.20647561]
[1768389342109,20.81,144.23,144.08,3.20647561]
[1768389342311,27.96744952,144.19,143.96,3.20647561]
[1768389342514,6.932,144.2,143.96,3.20647561]
[1768389342515,20.81,144.13,143.96,3.20647561]
[1768389342718,20.81,144.11,143.97,3.20647561]
[1768389343108,20.81,144.11,144.01,3.20647561]
[1768389343311,88.67744952,144.18,144.01,3.20647561]
[1768389343508,20.81,144.17,144.01,3.20647561]
[1768389346618,20.81,144.14,144.01,3.20647561]
[1768389347732,20.81,144.17,144.01,3.20647561]
[1768389350532,20.81,144.18,144.02,3.20647561]
[1768389351929,20.81,144.18,144.04,3.20647561]
[1768389352429,20.81,144.18,143.92,176.20841725]
[1768389352430,20.81,144.08,143.86,7.15744952]
[1768389352635,59.77944952,144.2,143.87,15.92]
[1768389352636,20.81,144.05,143.87,15.92]
[1768389352836,20.81,144.05,143.95,0.3]
[1768389353427,27.96744952,144.05,143.95,0.3]
[1768389354034,20.81,144.07,143.95,0.3]
[1768389354236,0.04765146,144.01,143.95,0.3]
[1768389354532,20.81,144.07,143.99,0.04879975]
[1768389355233,22.19,144.07,143.99,0.04879975]
[1768389356226,22.19,144.07,143.95,0.3]
[1768389356227,0.05012934,144.04,143.95,0.3]
[1768389356632,20.81,144.06,143.95,0.3]
[1768389356833,20.81,144.06,143.95,3.50647561]
[1768389357234,20.81,144.06,143.95,3.20647561]
[1768389357741,0.05251176,144.02,143.95,3.20647561]
[1768389357937,48.54,144.14,143.9,7.15744952]
[1768389357938,20.81,144.09,143.99,0.04440925]
[1768389358243,20.81,144.09,143.99,3.25088486]
[1768389358436,20.81,144.09,143.99,3.20647561]
[1768389358834,20.81,144.12,143.99,3.20647561]
[1768389359339,20.81,144.12,144.03,0.05164136]
[1768389359736,20.81,144.12,143.99,3.20647561]
[1768389360134,20.81,144.12,144.06,0.04520021]
[1768389360432,20.81,144.12,143.99,3.20647561]
[1768389362741,0.04415808,144.07,143.99,3.20647561]
[1768389364146,20.81,144.15,144.0,3.20647561]
[1768389364341,20.81,144.15,143.99,8.53744952]
[1768389364342,20.81,144.15,144.03,3.20647561]
[1768389364542,7.15744952,144.22,144.03,3.20647561]
[1768389365138,20.81,144.21,144.03,3.20647561]
[1768389365544,20.81,144.21,144.11,0.04861819]
[1768389365943,20.81,144.21,144.1,3.06454127]
[1768389366441,20.81,144.21,144.15,0.0520028]
[1768389367138,22.01736911,144.24,144.15,0.0520028]
[1768389367539,22.01736911,144.24,144.12,3.06454127]
[1768389368047,1.20736911,144.24,144.17,0.04395301]
[1768389374247,1.20736911,144.24,144.14,3.06454127]
[1768389374442,0.05319195,144.22,144.14,3.06454127]
[1768389381050,0.05319195,144.22,143.96,83.32]
[1768389381248,20.81,144.12,143.85,1.20913102]
[1768389381549,20.81,144.12,143.94,7.14]
[1768389381747,20.81,144.12,143.93,7.15744952]
[1768389381950,20.81,144.12,143.94,25.24]
[1768389382246,20.81,144.12,144.06,0.3]
[1768389382753,27.96744952,144.18,144.06,0.3]